fUSD/lending_fUSD_20260615
["ID","MTS","AMOUNT","RATE_DAILY","PERIOD"]
[425110866,1781519432000,-1980.9465,0.000119,2]
[425110867,1781519432000,-250.0,0.0001195,2]
[425110868,1781519432000,-216.09656886,0.00012,2]
[425110869,1781519432000,-150.0,0.00012018,2]
[425110872,1781519432000,-150.0,0.00012098,2]
[425110875,1781519432000,-500.0,0.00012099,2]
[425110906,1781519432000,-368.94759621,0.00012149,2]
[425110871,1781519432000,-282.8390377,0.00012023,2]
[425110884,1781519432000,-500.0,0.00012099,2]
[425110877,1781519432000,-500.0,0.00012099,2]
[425110870,1781519432000,-2.02763914,0.00012023,2]
[425110873,1781519432000,-500.0,0.00012099,2]
[425110876,1781519432000,-500.0,0.00012099,2]
[425110878,1781519432000,-500.0,0.00012099,2]
[425110880,1781519432000,-500.0,0.00012099,2]
[425110890,1781519432000,-224.73543724,0.00012099,2]
[425110879,1781519432000,-500.0,0.00012099,2]
[425110882,1781519432000,-500.0,0.00012099,2]
[425110874,1781519432000,-500.0,0.00012099,2]
[425110907,1781519432000,-8548.51,0.0001215,2]
[425110942,1781519432000,-255.0,0.00013187,2]
[425110908,1781519432000,-160.77156951,0.0001215,2]
[425110933,1781519432000,-467.2968,0.00012947,2]
[425110936,1781519432000,-250.44677772,0.00012983,2]
[425110934,1781519432000,-300.0,0.00012964,2]
[425110935,1781519432000,-163.69,0.00012983,2]
[425110938,1781519432000,-500.0,0.00013083,2]
[425110937,1781519432000,-160.0,0.00012999,2]
[425110939,1781519432000,-250.0,0.0001309,2]
[425110940,1781519432000,-3104.55340209,0.00013108,2]
[425110932,1781519432000,-173.34056836,0.00012919,2]
[425110944,1781519432000,-1113.77,0.00013244,2]
[425110943,1781519432000,-800.0,0.00013215,2]
[425110941,1781519432000,-278.83842033,0.00013108,2]
[425110949,1781519432000,-591.0,0.00013424,2]
[425110947,1781519432000,-591.0,0.00013424,2]
[425110946,1781519432000,-278.83842033,0.00013332,2]
[425110950,1781519432000,-591.0,0.00013424,2]
[425110951,1781519432000,-591.0,0.00013424,2]
[425110909,1781519432000,-160.77156951,0.0001215,2]
[425110948,1781519432000,-591.0,0.00013424,2]
[425110931,1781519432000,-176.71135637,0.00012919,2]
[425110945,1781519432000,-3104.55340209,0.00013332,2]
[425110930,1781519432000,-181.4529841,0.00012919,2]
[425110929,1781519432000,-800.0,0.00012907,2]
[425110911,1781519432000,-5528.0,0.000123,3]
[425110914,1781519432000,-166.66,0.00012515,2]
[425110913,1781519432000,-160.0,0.00012405,2]
[425110910,1781519432000,-166.66,0.00012272,2]
[425110915,1781519432000,-1000.0,0.00012599,2]
[425110917,1781519432000,-5528.0,0.000126,5]
[425110919,1781519432000,-652.15,0.00012757,2]
[425110918,1781519432000,-152.0,0.00012607,2]
[425110912,1781519432000,-319.68685379,0.00012346,2]
[425110927,1781519432000,-18671.98635349,0.00012893,2]
[425110926,1781519432000,-46962.47916482,0.00012884,2]
[425110920,1781519432000,-5051.82,0.00012757,2]
[425110923,1781519432000,-3104.55340215,0.00012884,2]
[425110922,1781519432000,-176.71135637,0.0001282,2]
[425110925,1781519432000,-70.18403518,0.00012884,2]
[425110921,1781519432000,-166.66,0.00012758,2]
[425110924,1781519432000,-278.83842035,0.00012884,2]
[425110916,1781519432000,-800.0,0.000126,2]
[425110928,1781519432000,-4314.48364651,0.00012893,2]
[425110964,1781519433000,-591.0,0.00013424,2]
[425110965,1781519433000,-591.0,0.00013424,2]
[425110968,1781519433000,-591.0,0.00013424,2]
[425110969,1781519433000,-591.0,0.00013424,2]
[425110973,1781519433000,-150.0,0.00013424,2]
[425110974,1781519433000,-150.0,0.00013424,2]
[425110971,1781519433000,-150.0,0.00013424,2]
[425110970,1781519433000,-598.86059205,0.00013424,2]
[425110972,1781519433000,-245.2777844,0.00013424,2]
[425110977,1781519433000,-150.0,0.00013424,2]
[425110967,1781519433000,-591.0,0.00013424,2]
[425110966,1781519433000,-591.0,0.00013424,2]
[425110961,1781519433000,-591.0,0.00013424,2]
[425110959,1781519433000,-591.0,0.00013424,2]
[425110957,1781519433000,-591.0,0.00013424,2]
[425110954,1781519433000,-591.0,0.00013424,2]
[425110955,1781519433000,-591.0,0.00013424,2]
[425110956,1781519433000,-591.0,0.00013424,2]
[425110960,1781519433000,-591.0,0.00013424,2]
[425110953,1781519433000,-591.0,0.00013424,2]
[425110958,1781519433000,-591.0,0.00013424,2]
[425110952,1781519433000,-591.0,0.00013424,2]
[425110962,1781519433000,-591.0,0.00013424,2]
[425110976,1781519433000,-150.0,0.00013424,2]
[425110963,1781519433000,-591.0,0.00013424,2]
[425110981,1781519433000,-4000.0,0.00013522,2]
[425110975,1781519433000,-207.5582428,0.00013424,2]
[425110979,1781519433000,-292.89,0.00013431,2]
[425110978,1781519433000,-217.6265061,0.00013424,2]
[425111005,1781519433000,-3394.2916258,0.00013699,2]
[425110999,1781519433000,-764.77933751,0.00013699,2]
[425111000,1781519433000,-812.72909944,0.00013699,2]
[425111001,1781519433000,-528.12118031,0.00013699,2]
[425110998,1781519433000,-14102.7521772,0.00013699,2]
[425111002,1781519433000,-1905.14323361,0.00013699,2]
[425111003,1781519433000,-1741.76684916,0.00013699,2]
[425110996,1781519433000,-3230.95,0.00013699,2]
[425110997,1781519433000,-499.99,0.00013699,2]
[425110995,1781519433000,-500.0,0.00013698,2]
[425110994,1781519433000,-647.74685789,0.00013698,2]
[425110992,1781519433000,-500.0,0.00013698,2]
[425111004,1781519433000,-3558.18510261,0.00013699,2]
[425110991,1781519433000,-385.06,0.00013698,2]
[425110990,1781519433000,-500.0,0.00013698,2]
[425110980,1781519433000,-800.0,0.00013522,2]
[425110982,1781519433000,-300.0,0.00013522,2]
[425110985,1781519433000,-278.83842033,0.00013556,2]
[425110984,1781519433000,-1338.28675364,0.00013556,2]
[425110983,1781519433000,-1766.26664845,0.00013556,2]
[425110987,1781519433000,-500.0,0.00013698,2]
[425110988,1781519433000,-500.0,0.00013698,2]
[425110989,1781519433000,-500.0,0.00013698,2]
[425110986,1781519433000,-500.0,0.00013698,2]
[425110993,1781519433000,-504.10545625,0.00013698,2]
[425111007,1781519437000,-7872.46192245,0.00013699,2]
[425111053,1781519440000,-278.83842033,0.00014452,2]
[425111054,1781519440000,-306.03,0.00014502,2]
[425111050,1781519440000,-433.0,0.00014372,2]
[425111051,1781519440000,-306.03,0.00014395,2]
[425111061,1781519440000,-278.83842033,0.00014676,2]
[425111047,1781519440000,-3104.55340209,0.00014228,2]
[425111058,1781519440000,-306.03,0.00014592,2]
[425111056,1781519440000,-299.99,0.00014504,2]
[425111057,1781519440000,-2887.32,0.00014504,2]
[425111060,1781519440000,-3104.55340209,0.00014676,2]
[425111052,1781519440000,-3104.55340209,0.00014452,2]
[425111066,1781519440000,-150.0,0.00014795,2]
[425111063,1781519440000,-421.3818,0.000147,2]
[425111062,1781519440000,-167.149503,0.000147,2]
[425111064,1781519440000,-306.03,0.00014743,2]
[425111065,1781519440000,-150.0,0.00014795,2]
[425111072,1781519440000,-159.00863,0.0001485,2]
[425111070,1781519440000,-159.00863,0.0001485,2]
[425111071,1781519440000,-159.00864,0.0001485,2]
[425111069,1781519440000,-159.00864,0.0001485,2]
[425111048,1781519440000,-278.83842033,0.00014228,2]
[425111068,1781519440000,-159.00864,0.0001485,2]
[425111055,1781519440000,-8694.49,0.00014504,2]
[425111045,1781519440000,-1723.40313887,0.00014141,2]
[425111033,1781519440000,-500.0,0.0001391,4]
[425111041,1781519440000,-278.83842033,0.00014004,2]
[425111067,1781519440000,-306.03,0.00014809,2]
[425111024,1781519440000,-2675.81,0.00013699,2]
[425111025,1781519440000,-6288.61,0.00013699,2]
[425111026,1781519440000,-500.0,0.00013699,2]
[425111023,1781519440000,-16294.55947191,0.00013699,2]
[425111027,1781519440000,-244.558186,0.00013754,2]
[425111029,1781519440000,-278.83842033,0.0001378,2]
[425111034,1781519440000,-306.03,0.0001392,2]
[425111039,1781519440000,-500.0,0.00014,2]
[425111037,1781519440000,-200.72513036,0.00013955,2]
[425111049,1781519440000,-306.03,0.00014256,2]
[425111030,1781519440000,-1175.06,0.00013891,2]
[425111032,1781519440000,-500.0,0.0001391,3]
[425111031,1781519440000,-500.0,0.0001391,2]
[425111036,1781519440000,-156.587,0.00013955,2]
[425111035,1781519440000,-151.0,0.00013955,2]
[425111038,1781519440000,-13283.32529836,0.0001399,2]
[425111040,1781519440000,-3104.55340209,0.00014004,2]
[425111043,1781519440000,-653.04767209,0.00014141,2]
[425111046,1781519440000,-2331.8163,0.00014141,2]
[425111042,1781519440000,-247.45879383,0.00014141,2]
[425111044,1781519440000,-1152.05350178,0.00014141,2]
[425111028,1781519440000,-3104.55340209,0.0001378,2]
[425111073,1781519440000,-159.00863,0.0001485,2]
[425111059,1781519440000,-306.03,0.00014671,2]
[425111076,1781519440000,-1113.77,0.00014899,2]
[425111104,1781519440000,-1126.45563084,0.00014999,5]
[425111105,1781519440000,-500.0,0.00014999,2]
[425111100,1781519440000,-500.0,0.00014999,11]
[425111102,1781519440000,-500.0,0.00014999,13]
[425111117,1781519440000,-469.63952298,0.00014999,2]
[425111107,1781519440000,-500.0,0.00014999,2]
[425111109,1781519440000,-500.0,0.00014999,2]
[425111106,1781519440000,-500.0,0.00014999,2]
[425111108,1781519440000,-500.0,0.00014999,2]
[425111110,1781519440000,-500.0,0.00014999,2]
[425111103,1781519440000,-500.0,0.00014999,14]
[425111114,1781519440000,-500.0,0.00014999,2]
[425111112,1781519440000,-500.0,0.00014999,2]
[425111116,1781519440000,-500.0,0.00014999,2]
[425111115,1781519440000,-500.0,0.00014999,2]
[425111075,1781519440000,-200.0,0.0001488,2]
[425111118,1781519440000,-300.0,0.00014999,2]
[425111124,1781519440000,-300.0,0.00014999,2]
[425111123,1781519440000,-300.0,0.00014999,2]
[425111120,1781519440000,-300.0,0.00014999,2]
[425111122,1781519440000,-300.0,0.00014999,2]
[425111121,1781519440000,-325.9944543,0.00014999,2]
[425111111,1781519440000,-500.0,0.00014999,2]
[425111096,1781519440000,-500.0,0.00014999,7]
[425111113,1781519440000,-500.0,0.00014999,2]
[425111101,1781519440000,-500.0,0.00014999,12]
[425111077,1781519440000,-247.21959036,0.000149,2]
[425111082,1781519440000,-487.97370602,0.000149,2]
[425111080,1781519440000,-588.85820092,0.000149,2]
[425111074,1781519440000,-306.03,0.0001487,2]
[425111079,1781519440000,-3104.55340209,0.000149,2]
[425111081,1781519440000,-278.83842033,0.000149,2]
[425111078,1781519440000,-1863.29948297,0.000149,2]
[425111084,1781519440000,-306.03,0.00014928,2]
[425111085,1781519440000,-350.0,0.00014959,2]
[425111086,1781519440000,-306.03,0.00014983,2]
[425111087,1781519440000,-454.0,0.00014986,2]
[425111083,1781519440000,-210.01209059,0.000149,2]
[425111090,1781519440000,-80596.5196846,0.00014992,2]
[425111098,1781519440000,-500.0,0.00014999,9]
[425111095,1781519440000,-500.0,0.00014999,6]
[425111091,1781519440000,-126772.2478126,0.00014992,2]
[425111094,1781519440000,-151.0,0.00014997,2]
[425111093,1781519440000,-11931.1294171,0.00014992,2]
[425111099,1781519440000,-500.0,0.00014999,10]
[425111088,1781519440000,-500.0,0.00014988,5]
[425111092,1781519440000,-1532.8317747,0.00014992,2]
[425111119,1781519440000,-300.0,0.00014999,2]
[425111089,1781519440000,-500.0,0.00014991,2]
[425111097,1781519440000,-500.0,0.00014999,8]
[425111128,1781519441000,1613.0,0.000126,5]
[425111127,1781519441000,-310590.07185633,0.00015,2]
[425111125,1781519441000,-4371.0,0.00015,5]
[425111126,1781519441000,-5864.0,0.00015,5]
[425111144,1781519442000,-469.61899945,0.00015,2]
[425111168,1781519445000,-302.0,0.00015,2]
[425111169,1781519445000,-547356.45492588,0.00015,2]
[425111170,1781519445000,-1005.0,0.00015,2]
[425111201,1781520285000,-320.09258728,0.0001308,2]
[425111176,1781520285000,-150.0,0.000121,2]
[425111178,1781520285000,-370.11025436,0.000121,2]
[425111177,1781520285000,-160.80492544,0.000121,2]
[425111179,1781520285000,-160.0,0.0001211,2]
[425111180,1781520285000,-160.0,0.0001211,2]
[425111183,1781520285000,-166.66,0.00012575,2]
[425111181,1781520285000,-166.66,0.00012315,2]
[425111182,1781520285000,-216.09656886,0.00012315,2]
[425111184,1781520285000,-166.66,0.00012834,2]
[425111185,1781520285000,-1169.0237,0.00012987,2]
[425111187,1781520285000,-171.93780308,0.0001308,2]
[425111186,1781520285000,-500.0,0.0001308,2]
[425111188,1781520285000,-500.0,0.0001308,2]
[425111190,1781520285000,-500.0,0.0001308,2]
[425111191,1781520285000,-353.99080792,0.0001308,2]
[425111192,1781520285000,-330.24632547,0.0001308,2]
[425111193,1781520285000,-500.0,0.0001308,2]
[425111194,1781520285000,-500.0,0.0001308,2]
[425111196,1781520285000,-437.71702759,0.0001308,2]
[425111195,1781520285000,-500.0,0.0001308,2]
[425111197,1781520285000,-500.0,0.0001308,2]
[425111198,1781520285000,-500.0,0.0001308,2]
[425111200,1781520285000,-500.0,0.0001308,2]
[425111199,1781520285000,-500.0,0.0001308,2]
[425111189,1781520285000,-500.0,0.0001308,2]
[425111203,1781520286000,-500.0,0.0001308,2]
[425111205,1781520286000,-500.0,0.0001308,2]
[425111202,1781520286000,-179.90741272,0.0001308,2]
[425111206,1781520286000,-500.0,0.0001308,2]
[425111208,1781520286000,-500.0,0.0001308,2]
[425111207,1781520286000,-500.0,0.0001308,2]
[425111204,1781520286000,-500.0,0.0001308,2]
[425111209,1781520287000,-500.0,0.0001308,2]
[425111210,1781520287000,-500.0,0.0001308,2]
[425111212,1781520287000,-500.0,0.0001308,2]
[425111213,1781520287000,-500.0,0.0001308,2]
[425111211,1781520287000,-500.0,0.0001308,2]
[425111214,1781520287000,-500.0,0.0001308,2]
[425111215,1781520287000,-500.0,0.0001308,2]
[425111217,1781520287000,-500.0,0.00013082,2]
[425111216,1781520287000,-537.58594121,0.0001308,2]
[425111218,1781520287000,-500.0,0.00013082,2]
[425111219,1781520287000,-500.0,0.00013082,2]
[425111220,1781520287000,-258.28561023,0.00013082,2]
[425111221,1781520287000,-500.0,0.00013082,2]
[425111222,1781520287000,-338.34685401,0.00013082,2]
[425111223,1781520287000,-185.87418183,0.00013082,2]
[425111226,1781520288000,-208.9385563,0.00013082,2]
[425111225,1781520288000,-483.35219668,0.00013082,2]
[425111224,1781520288000,-314.12581817,0.00013082,2]
[425111227,1781520288000,-150.0,0.00013082,2]
[425111229,1781520288000,-8687.35342885,0.00013083,2]
[425111228,1781520288000,-156.23,0.00013083,2]
[425111232,1781520290000,-2887.32,0.00013083,2]
[425111233,1781520290000,-6805.55342885,0.00013083,2]
[425111230,1781520290000,-7.13657115,0.00013083,2]
[425111231,1781520290000,-299.99,0.00013083,2]
[425111234,1781520292000,-2966.14657115,0.00013083,2]
[425111235,1781520292000,-7033.85342885,0.00013083,2]
[425111237,1781520310000,-317.0,0.0001308,2]
[425111238,1781520310000,-500.0,0.0001308,2]
[425111236,1781520310000,-4033.05,0.00013071,2]
[425111239,1781520310000,-195.55657115,0.00013083,2]
[425111240,1781520310000,-4954.39342885,0.00013083,2]
[425111241,1781520311000,-151.0,0.00013071,2]
[425111243,1781520311000,-2675.81,0.00013083,2]
[425111245,1781520311000,-949.13,0.00013087,2]
[425111244,1781520311000,-500.0,0.00013087,2]
[425111242,1781520311000,-1334.21657115,0.00013083,2]
[425111249,1781520311000,-150.0,0.00013149,2]
[425111248,1781520311000,-1558.04,0.00013147,2]
[425111246,1781520311000,-166.66,0.00013093,2]
[425111250,1781520311000,-317.0,0.00013165,2]
[425111256,1781520311000,-748.55342885,0.00013235,2]
[425111255,1781520311000,-186.38,0.00013229,2]
[425111254,1781520311000,-152.0,0.00013184,2]
[425111247,1781520311000,-171.21,0.000131,2]
[425111253,1781520311000,-311.0,0.00013176,2]
[425111251,1781520311000,-314.0,0.00013165,2]
[425111252,1781520311000,-315.0,0.00013176,2]
[425111259,1781520312000,-316.0,0.00013239,2]
[425111257,1781520312000,-1852.89657115,0.00013235,2]
[425111258,1781520312000,-319.0,0.00013239,2]
[425111271,1781520313000,-309.0,0.00013387,2]
[425111270,1781520313000,-166.66,0.00013352,2]
[425111269,1781520313000,-318.0,0.00013316,2]
[425111268,1781520313000,-315.0,0.00013316,2]
[425111266,1781520313000,-500.0,0.0001331,2]
[425111265,1781520313000,-250.0,0.0001331,2]
[425111264,1781520313000,-250.0,0.00013309,2]
[425111260,1781520313000,-315.0,0.00013245,2]
[425111263,1781520313000,-312.0,0.00013277,2]
[425111272,1781520313000,-317.0,0.00013387,2]
[425111262,1781520313000,-319.0,0.00013277,2]
[425111267,1781520313000,-193.0,0.0001331,2]
[425111261,1781520313000,-310.0,0.00013245,2]
[425111274,1781520313000,-150.0,0.00013424,2]
[425111276,1781520313000,-150.0,0.00013424,2]
[425111286,1781520313000,-500.0,0.00013698,2]
[425111273,1781520313000,-319.0,0.00013387,2]
[425111282,1781520313000,-500.0,0.00013562,2]
[425111285,1781520313000,-500.0,0.00013698,2]
[425111283,1781520313000,-166.66,0.00013612,2]
[425111284,1781520313000,-150.0,0.00013697,2]
[425111287,1781520313000,-201.78342885,0.00013698,2]
[425111280,1781520313000,-150.0,0.00013488,2]
[425111279,1781520313000,-250.0,0.00013424,2]
[425111278,1781520313000,-150.0,0.00013424,2]
[425111277,1781520313000,-150.0,0.00013424,2]
[425111275,1781520313000,-150.0,0.00013424,2]
[425111281,1781520313000,-150.0,0.00013488,2]
[425111291,1781520323000,-310.0,0.00013188,2]
[425111290,1781520323000,-315.0,0.00013071,2]
[425111289,1781520323000,-315.0,0.00013071,2]
[425111288,1781520323000,-151.0,0.00012566,2]
[425111296,1781520324000,-500.0,0.00013699,2]
[425111292,1781520324000,-298.21657115,0.00013698,2]
[425111293,1781520324000,-500.0,0.00013698,2]
[425111294,1781520324000,-500.0,0.00013698,2]
[425111297,1781520324000,-244.558186,0.00013754,2]
[425111301,1781520324000,-156.587,0.00013955,2]
[425111298,1781520324000,-306.04,0.00013887,2]
[425111302,1781520324000,-200.72513036,0.00013955,2]
[425111299,1781520324000,-306.03,0.00013888,2]
[425111300,1781520324000,-151.0,0.00013955,2]
[425111303,1781520324000,-5245.84311249,0.0001399,2]
[425111295,1781520324000,-500.0,0.00013698,2]
[425111304,1781520326000,-8037.48218587,0.0001399,2]
[425111305,1781520326000,-429.67,0.00013997,2]
[425111309,1781520326000,-600.0,0.00014378,2]
[425111308,1781520326000,-166.15,0.00014308,2]
[425111307,1781520326000,-200.0,0.00014055,2]
[425111310,1781520326000,-316.69781413,0.00014378,2]
[425111306,1781520326000,-250.0,0.00014,2]
[425111318,1781520331000,-500.0,0.00014452,2]
[425111311,1781520331000,-152.0,0.00013071,2]
[425111313,1781520331000,-387.58831051,0.00014378,2]
[425111312,1781520331000,-312.0,0.00013188,2]
[425111314,1781520331000,-250.0,0.00014378,2]
[425111315,1781520331000,-200.0,0.00014391,2]
[425111317,1781520331000,-500.0,0.00014452,2]
[425111321,1781520331000,-430.35258288,0.00014693,2]
[425111319,1781520331000,-306.03,0.00014485,2]
[425111322,1781520331000,-582.2784,0.00014693,2]
[425111323,1781520331000,-320.625531,0.00014699,2]
[425111320,1781520331000,-287.68033951,0.00014693,2]
[425111325,1781520331000,-22.7171511,0.00014699,2]
[425111324,1781520331000,-248.727685,0.00014699,2]
[425111316,1781520331000,-500.0,0.00014452,2]
[425111338,1781520473000,-320.0,0.00013364,2]
[425111328,1781520473000,-172.44,0.00011104,2]
[425111329,1781520473000,-250.0,0.00012214,2]
[425111330,1781520473000,-193.0,0.00012214,2]
[425111332,1781520473000,-153.0,0.00013364,2]
[425111333,1781520473000,-317.0,0.00013364,2]
[425111335,1781520473000,-315.0,0.00013364,2]
[425111336,1781520473000,-152.0,0.00013364,2]
[425111331,1781520473000,-160.0,0.00013364,2]
[425111334,1781520473000,-320.0,0.00013364,2]
[425111337,1781520473000,-316.0,0.00013364,2]
[425111345,1781520473000,-940.06,0.00013809,2]
[425111343,1781520473000,-309.0,0.00013486,2]
[425111344,1781520473000,-1000.0,0.00013743,2]
[425111346,1781520473000,-3983.5,0.0001383,2]
[425111342,1781520473000,-160.0,0.00013365,2]
[425111341,1781520473000,-318.0,0.00013364,2]
[425111339,1781520473000,-310.0,0.00013364,2]
[425111340,1781520473000,-311.0,0.00013364,2]
[425111349,1781520478000,-7328.91,0.00013929,2]
[425111348,1781520478000,-200.0,0.00013873,2]
[425111347,1781520478000,-2471.09,0.0001383,2]
[425111351,1781520484000,-3085.1298737,0.00013929,2]
[425111350,1781520484000,-1246.43,0.00013851,2]
[425111353,1781520485000,-350.0,0.00014417,2]
[425111354,1781520485000,-151.0,0.0001463,2]
[425111352,1781520485000,-320.0,0.0001399,2]
[425111356,1781520485000,-1079.42171025,0.000147,2]
[425111357,1781520485000,-1063.42236706,0.000147,2]
[425111358,1781520485000,-1040.68842649,0.000147,2]
[425111355,1781520485000,-350.0,0.00014682,2]
[425111360,1781520560000,205.9995153,0.00014122,2]
[425111361,1781520561000,196.49503224,0.00014122,2]
[425111376,1781520631000,-151.0,0.00014122,2]
[425111381,1781520631000,-311.0,0.00014122,2]
[425111380,1781520631000,-151.0,0.00014122,2]
[425111375,1781520631000,-320.0,0.00014122,2]
[425111379,1781520631000,-309.0,0.00014122,2]
[425111377,1781520631000,-316.0,0.00014122,2]
[425111383,1781520631000,-347.14094787,0.00014122,2]
[425111385,1781520631000,-276.77161148,0.00014122,2]
[425111378,1781520631000,-316.0,0.00014122,2]
[425111382,1781520631000,-160.0,0.00014122,2]
[425111373,1781520631000,-319.0,0.00014122,2]
[425111366,1781520631000,-312.0,0.00014121,2]
[425111374,1781520631000,-318.0,0.00014122,2]
[425111369,1781520631000,-316.0,0.00014121,2]
[425111368,1781520631000,-321.0,0.00014121,2]
[425111367,1781520631000,-152.0,0.00014121,2]
[425111370,1781520631000,-309.0,0.00014121,2]
[425111371,1781520631000,-314.0,0.00014121,2]
[425111365,1781520631000,-300.0,0.00014121,2]
[425111388,1781520631000,-1268.29492728,0.00014122,2]
[425111372,1781520631000,-150.0,0.00014122,2]
[425111364,1781520631000,-801.0746,0.00014,2]
[425111384,1781520631000,-959.03830814,0.00014122,2]
[425111392,1781520631000,-18280.45389221,0.00014619,2]
[425111387,1781520631000,-672.84757272,0.00014122,2]
[425111389,1781520631000,-314.0,0.00014225,2]
[425111390,1781520631000,-320.0,0.00014225,2]
[425111411,1781520631000,-500.0,0.00014718,2]
[425111415,1781520631000,-580.79992716,0.00014718,2]
[425111414,1781520631000,-500.0,0.00014718,2]
[425111412,1781520631000,-500.0,0.00014718,2]
[425111416,1781520631000,-150.0,0.00014718,2]
[425111413,1781520631000,-188.34653767,0.00014718,2]
[425111405,1781520631000,-500.0,0.00014699,2]
[425111409,1781520631000,-236.84279781,0.00014718,2]
[425111402,1781520631000,-500.0,0.00014699,2]
[425111404,1781520631000,-453.75859412,0.00014699,2]
[425111406,1781520631000,-321.0,0.000147,2]
[425111407,1781520631000,-319.0,0.000147,2]
[425111396,1781520631000,-320.0,0.00014666,2]
[425111398,1781520631000,-500.0,0.00014699,2]
[425111397,1781520631000,-500.0,0.00014699,2]
[425111399,1781520631000,-500.0,0.00014699,2]
[425111391,1781520631000,-313.0,0.00014225,2]
[425111394,1781520631000,-350.0,0.00014656,2]
[425111395,1781520631000,-150.0,0.00014656,2]
[425111386,1781520631000,-1157.89234119,0.00014122,2]
[425111393,1781520631000,-94911.77860779,0.00014619,2]
[425111417,1781520631000,-9252.66,0.00014718,2]
[425111400,1781520631000,-500.0,0.00014699,2]
[425111419,1781520632000,-1254.41808677,0.00014718,2]
[425111420,1781520632000,-380.57217735,0.00014718,2]
[425111421,1781520632000,-470.31736,0.00014718,2]
[425111418,1781520632000,-8179.61880381,0.00014718,2]
[425111426,1781520632000,-278.52586619,0.00014718,2]
[425111423,1781520632000,-1075.43,0.00014718,2]
[425111424,1781520632000,-1697.0033441,0.00014718,2]
[425111425,1781520632000,-467.29685263,0.00014718,2]
[425111422,1781520632000,-316.11449079,0.00014718,2]
[425111437,1781520637000,-20940.51847001,0.00014719,2]
[425111435,1781520637000,-7855.27584597,0.00014718,2]
[425111436,1781520637000,-4182.1809,0.00014719,2]
[425111434,1781520637000,-1495.93368799,0.00014718,2]
[425111433,1781520637000,-299.99,0.00014718,2]
[425111431,1781520637000,-10392.36301836,0.00014718,2]
[425111432,1781520637000,-6643.36046604,0.00014718,2]
[425111430,1781520637000,-314.0,0.00014,2]
[425111439,1781520639000,-315.0,0.00014,2]
[425111438,1781520639000,-150.0,0.00014,2]
[425111440,1781520639000,-310.67129044,0.00014719,2]
[425111465,1781520641000,-745.15,0.00014818,2]
[425111466,1781520641000,-500.0,0.00014818,2]
[425111463,1781520641000,-1265.62,0.00014818,2]
[425111468,1781520641000,-500.0,0.00014818,2]
[425111470,1781520641000,-500.0,0.00014818,2]
[425111467,1781520641000,-500.0,0.00014818,2]
[425111479,1781520641000,-765.97453468,0.0001484,2]
[425111469,1781520641000,-500.0,0.00014818,2]
[425111471,1781520641000,-500.0,0.00014818,2]
[425111477,1781520641000,-765.97453468,0.0001482,2]
[425111485,1781520641000,-765.97453468,0.0001486,2]
[425111475,1781520641000,-500.0,0.00014818,2]
[425111474,1781520641000,-500.0,0.00014818,2]
[425111480,1781520641000,-940.33103857,0.0001485,2]
[425111478,1781520641000,-2506.61691948,0.0001484,2]
[425111476,1781520641000,-2506.61691948,0.0001482,2]
[425111481,1781520641000,-480.42386,0.0001485,2]
[425111482,1781520641000,-480.42386,0.0001485,2]